bitfinex/quotes_SOLUSD_20220216
["timestamp","ask_amount","ask_price","bid_price","bid_amount"]
[1645029523351,1.42093929,99.442,99.36,14.57]
[1645029523551,1.42093929,99.442,99.35,50.3035]
[1645029523756,1.42093929,99.431,99.32,14.57]
[1645029523954,1.42093929,99.415,99.32,14.57]
[1645029524154,1.42093929,99.412,99.34,15.0958]
[1645029524353,1.42093929,99.41,99.34,15.0958]
[1645029524553,1.42093929,99.407,99.34,15.0958]
[1645029524753,1.42093929,99.406,99.34,116.3958]
[1645029524953,1.42093929,99.421,99.35,115.87]
[1645029525156,1.42093929,99.425,99.37,15.0913]
[1645029525557,1.42093929,99.437,99.37,15.0913]
[1645029525755,1.42093929,99.438,99.37,15.0913]
[1645029525959,1.42093929,99.433,99.37,15.0913]
[1645029526360,1.42093929,99.432,99.37,15.0913]
[1645029526557,1.42093929,99.435,99.37,15.0913]
[1645029527959,1.42093929,99.436,99.37,15.0913]
[1645029528659,1.42093929,99.435,99.37,15.0913]
[1645029530260,1.42093929,99.433,99.37,15.0913]
[1645029530462,1.42093929,99.432,99.37,15.0913]
[1645029530860,1.42093929,99.434,99.37,15.0913]
[1645029531763,1.42093929,99.436,99.37,15.0913]
[1645029532061,1.42093929,99.438,99.37,15.0913]
[1645029532462,1.42093929,99.437,99.37,15.0913]
[1645029533062,1.42093929,99.434,99.37,15.0913]
[1645029534068,1.42093929,99.436,99.37,15.0913]
[1645029534664,1.42093929,99.435,99.37,15.0913]
[1645029534867,1.42093929,99.436,99.37,15.0913]
[1645029535565,1.42093929,99.436,99.37,116.3913]
[1645029535766,1.42093929,99.436,99.371,2.330625]
[1645029535966,1.42093929,99.449,99.39,15.0858]
[1645029536169,1.42093929,99.453,99.39,29.6558]
[1645029536368,1.42093929,99.454,99.391,2.330625]
[1645029536570,1.42093929,99.454,99.39,14.57]
[1645029536968,1.42093929,99.456,99.39,14.57]
[1645029537198,1.42093929,99.455,99.391,2.330625]
[1645029537376,1.42093929,99.461,99.391,2.330625]
[1645029537571,1.42093929,99.459,99.391,2.330625]
[1645029537769,1.42093929,99.458,99.391,2.330625]
[1645029537971,1.42093929,99.457,99.4,15.0867]
[1645029538371,1.42093929,99.456,99.4,15.0867]
[1645029538572,1.42093929,99.461,99.4,15.0867]
[1645029538872,1.42093929,99.464,99.401,2.330625]
[1645029539076,1.42093929,99.468,99.41,15.0855]
[1645029539471,1.42093929,99.465,99.41,15.0855]
[1645029539672,1.42093929,99.464,99.41,15.0855]
[1645029540171,1.42093929,99.465,99.41,15.0855]
[1645029540376,1.42093929,99.463,99.41,15.0855]
[1645029540574,1.42093929,99.462,99.41,15.0855]
[1645029540772,1.42093929,99.461,99.41,15.0855]
[1645029540973,1.42093929,99.457,99.41,15.0855]
[1645029541175,1.42093929,99.46,99.4,15.0877]
[1645029541372,1.42093929,99.459,99.382,2.330625]
[1645029541575,1.42093929,99.459,99.36,101.3]
[1645029541576,1.42093929,99.452,99.368,2.330625]
[1645029542372,1.42093929,99.451,99.368,2.330625]
[1645029542776,1.42093929,99.45,99.37,15.0909]
[1645029542976,1.42093929,99.444,99.348,2.330625]
[1645029543176,1.42093929,99.433,99.34,50.3079]
[1645029543376,1.42093929,99.429,99.33,14.57]
[1645029543576,1.42093929,99.425,99.33,14.57]
[1645029543876,1.42093929,99.423,99.35,15.0941]
[1645029544084,161.76,99.422,99.304,2.330625]
[1645029544278,1.42093929,99.42,99.31,14.57]
[1645029544476,1.42093929,99.414,99.304,2.330625]
[1645029544708,1.42093929,99.413,99.304,2.330625]
[1645029545079,1.42093929,99.412,99.304,2.330625]
[1645029545579,1.42093929,99.409,99.304,2.330625]
[1645029545984,116.3994,99.41,99.33,15.0972]
[1645029546985,16.52033929,99.41,99.33,15.0972]
[1645029547382,15.0994,99.41,99.33,15.0972]
[1645029548884,101.3,99.402,99.304,2.330625]
[1645029549086,161.76,99.389,99.29,14.57]
[1645029549286,101.3,99.387,99.295,2.330625]
[1645029550186,101.3,99.387,99.29,14.57]
[1645029550387,101.3,99.387,99.291,2.330625]
[1645029550994,116.403,99.38,99.3,15.1016]
[1645029551389,116.403,99.38,99.3,17.432225]
[1645029552088,101.3,99.359,99.285,2.330625]
[1645029552322,184.4467,99.359,99.25,50.3543]
[1645029552524,184.4467,99.359,99.248,2.330625]
[1645029553723,161.76,99.349,99.25,15.1102]
[1645029554321,101.3,99.347,99.25,15.1102]
[1645029554924,116.4102,99.34,99.25,15.1102]
[1645029557321,116.4102,99.34,99.251,2.31986136]
[1645029558123,116.4102,99.34,99.26,15.1089]
[1645029558324,15.1102,99.34,99.26,116.4089]
[1645029558525,23.1433,99.347,99.261,2.31986136]
[1645029558726,23.1433,99.347,99.262,101.3]
[1645029558924,23.1433,99.347,99.262,111.48014708]
[1645029559127,23.1433,99.347,99.28,116.4027]
[1645029559425,23.1433,99.347,99.281,2.31986136]
[1645029560825,23.1433,99.347,99.3,15.1028]
[1645029561226,23.1433,99.347,99.301,2.31986136]
[1645029561426,23.1433,99.347,99.3,15.1028]
[1645029563929,23.1433,99.347,99.3,17.42266136]
[1645029564126,1.42093929,99.408,99.3,118.72266136]
[1645029564328,1.42093929,99.414,99.31,14.57]
[1645029564531,49.7956,99.417,99.33,15.0977]
[1645029565126,101.3,99.416,99.33,15.0977]
[1645029565727,101.3,99.416,99.331,2.31986136]
[1645029566131,101.3,99.41,99.331,2.31986136]
[1645029566330,101.3,99.402,99.31,29.6701]
[1645029566530,101.3,99.398,99.31,29.6701]
[1645029567033,101.3,99.394,99.31,29.6701]
[1645029567229,101.3,99.388,99.31,14.57]
[1645029568130,101.3,99.386,99.31,14.57]
[1645029568530,101.3,99.386,99.3,15.1028]
[1645029568733,101.3,99.384,99.3,15.1028]
[1645029569932,101.3,99.38,99.3,15.1028]
[1645029570132,101.3,99.38,99.29,14.57]
[1645029570133,101.3,99.378,99.28,14.57]
[1645029570335,101.3,99.378,99.28,29.6749]
[1645029570533,101.3,99.378,99.28,15.1049]
[1645029571132,60.46,99.369,99.28,15.1049]
[1645029571334,60.46,99.361,99.28,15.1049]
[1645029571532,101.3,99.358,99.28,15.1049]
[1645029572234,24.8227,99.36,99.28,15.1049]
[1645029573635,24.8227,99.36,99.28,18.925638]
[1645029574051,60.46,99.359,99.28,18.925638]
[1645029574240,101.3,99.356,99.28,3.820738]
[1645029574442,60.46,99.349,99.28,3.820738]
[1645029574644,101.3,99.348,99.28,3.820738]
[1645029575040,60.46,99.355,99.28,3.820738]
[1645029575241,101.3,99.346,99.28,3.820738]
[1645029575442,101.3,99.338,99.28,3.820738]
[1645029577350,101.3,99.338,99.28,2.84797163]
[1645029577942,60.46,99.359,99.28,2.84797163]
[1645029577943,61.88093929,99.359,99.28,2.84797163]
[1645029578148,102.72093929,99.358,99.28,2.84797163]
[1645029578344,101.3,99.358,99.28,2.84797163]
[1645029582672,101.3,99.356,99.28,2.84797163]
[1645029584875,101.3,99.354,99.28,2.84797163]
[1645029585078,101.3,99.344,99.28,2.84797163]
[1645029585276,124.4317,99.344,99.28,2.84797163]
[1645029585678,101.3,99.342,99.28,2.84797163]
[1645029585878,101.3,99.338,99.28,2.84797163]
[1645029586477,23.1317,99.344,99.28,2.84797163]
[1645029590482,1.42093929,99.366,99.28,32.52377163]
[1645029590687,2.8233827,99.394,99.28,32.52377163]
[1645029590688,1.42093929,99.376,99.281,2.31986136]
[1645029590886,1.42093929,99.382,99.281,2.31986136]
[1645029591986,1.42093929,99.383,99.3,15.102]
[1645029593286,24.07273929,99.384,99.3,15.102]
[1645029594795,22.6518,99.384,99.3,15.102]
[1645029596794,1.42093929,99.383,99.3,15.102]
[1645029596995,1.42093929,99.382,99.3,15.102]
[1645029597225,1.42093929,99.381,99.3,15.102]
[1645029597920,1.42093929,99.382,99.3,15.102]
[1645029598320,1.42093929,99.381,99.3,15.102]
[1645029598521,1.42093929,99.382,99.3,15.102]
[1645029598820,1.42093929,99.381,99.3,15.102]
[1645029599621,1.42093929,99.38,99.3,15.102]
[1645029599823,1.42093929,99.379,99.3,15.102]
[1645029601025,1.42093929,99.38,99.3,15.102]
[1645029602529,1.42093929,99.38,99.3,29.672]
[1645029602927,1.42093929,99.382,99.3,29.672]
[1645029603130,1.42093929,99.383,99.3,29.672]
[1645029603729,1.42093929,99.382,99.3,29.672]
[1645029604929,1.42093929,99.383,99.3,29.672]
[1645029605430,22.6518,99.384,99.3,29.672]
[1645029605633,1.42093929,99.383,99.3,29.672]
[1645029605831,1.42093929,99.383,99.301,2.31986136]
[1645029606235,22.6518,99.384,99.32,15.0982]
[1645029606431,22.6518,99.384,99.32,29.6682]
[1645029607031,21.9637766,99.384,99.32,29.6682]
[1645029609734,21.9637766,99.384,99.32,15.0982]
[1645029609935,101.3,99.382,99.301,26.17996136]
[1645029610536,116.4032,99.38,99.301,26.17996136]
[1645029610740,116.4032,99.38,99.301,23.8601]
[1645029611734,101.3,99.378,99.3,15.1017]
[1645029612434,116.4036,99.37,99.3,15.1017]
[1645029612634,22.5432,99.369,99.3,15.1017]
[1645029616237,22.5432,99.369,99.301,2.31986136]
[1645029616438,22.5432,99.369,99.31,15.1007]
[1645029616638,22.5432,99.369,99.31,116.4007]
[1645029616836,22.5432,99.369,99.311,2.31986136]
[1645029617939,22.5432,99.369,99.32,15.0985]
[1645029619941,22.5432,99.369,99.32,116.3985]
[1645029620342,22.5432,99.369,99.32,15.0985]
[1645029621646,15.0981,99.4,99.32,15.0985]
[1645029621846,15.0981,99.4,99.32,29.6685]
[1645029623349,116.3981,99.4,99.32,15.0985]
[1645029623552,15.0981,99.4,99.32,15.0985]
[1645029623945,101.3,99.4,99.32,15.0985]
[1645029624152,101.3,99.384,99.311,2.31986136]
[1645029624352,101.3,99.382,99.3,15.1016]
[1645029624550,60.46,99.381,99.3,15.1016]
[1645029624752,101.3,99.378,99.3,15.1016]
[1645029624951,23.4738,99.385,99.3,15.1016]
[1645029625353,15.1011,99.38,99.3,15.1016]
[1645029625954,101.3,99.378,99.3,15.1016]
[1645029627361,101.3,99.378,99.301,2.31986136]
[1645029627759,101.3,99.384,99.301,2.31986136]
[1645029627959,15.1038,99.37,99.301,2.31986136]
[1645029628360,20.6838,99.37,99.301,2.31986136]
[1645029628559,20.6838,99.37,99.3,15.1016]
[1645029629770,15.1038,99.37,99.3,15.1016]
[1645029632184,24.3417,99.369,99.3,15.1016]
[1645029634888,24.3417,99.369,99.301,2.31986136]
[1645029635291,24.3417,99.369,99.31,15.1015]
[1645029636090,24.3417,99.369,99.301,2.31986136]
[1645029636392,24.3417,99.369,99.3,15.1029]
[1645029638693,24.3417,99.369,99.301,2.31986136]
[1645029640095,24.3417,99.369,99.3,15.1029]
[1645029640296,24.3417,99.369,99.301,2.31986136]
[1645029652639,15.104,99.36,99.301,2.31986136]
[1645029654540,24.3417,99.369,99.301,2.31986136]
[1645029659549,24.3417,99.369,99.301,103.61986136]
[1645029659749,24.3417,99.369,99.31,15.1015]
[1645029660151,24.3417,99.369,99.311,2.31986136]
[1645029660949,23.4738,99.385,99.311,2.31986136]
[1645029661152,23.4738,99.385,99.32,15.0992]
[1645029662358,23.4738,99.385,99.311,2.31986136]
[1645029662359,15.1013,99.38,99.311,2.31986136]
[1645029664761,15.1013,99.38,99.31,15.1013]
[1645029664962,101.3,99.359,99.292,2.31986136]
[1645029665168,101.3,99.359,99.28,2.84797163]
[1645029665169,191.1675,99.359,99.28,2.84797163]
[1645029665563,1.42093929,99.351,99.28,2.84797163]
[1645029665760,191.1675,99.359,99.28,2.84797163]
[1645029665761,1.42093929,99.349,99.28,2.84797163]
[1645029665961,1.42093929,99.348,99.28,2.84797163]
[1645029666461,1.42093929,99.357,99.28,2.84797163]
[1645029666665,1.42093929,99.358,99.28,2.84797163]
[1645029667751,24.0616,99.339,99.28,2.84797163]
[1645029668849,15.1088,99.33,99.28,2.84797163]
[1645029673354,24.0616,99.339,99.28,2.84797163]
[1645029673560,24.0616,99.339,99.281,2.31986136]
[1645029674763,24.0616,99.339,99.29,15.1044]
[1645029675577,24.0616,99.339,99.28,2.84797163]
[1645029676185,15.1087,99.33,99.28,2.84797163]
[1645029676885,24.0616,99.339,99.28,2.84797163]
[1645029680089,15.1092,99.33,99.28,2.84797163]
[1645029680488,24.0616,99.339,99.28,2.84797163]
[1645029683391,15.1089,99.33,99.28,2.84797163]
[1645029685294,1.42093929,99.363,99.281,127.0]
[1645029685495,1.42093929,99.386,99.29,14.57]
[1645029685696,1.42093929,99.386,99.291,48.6686]
[1645029685895,1.42093929,99.407,99.291,74.70834068]
[1645029686096,1.42093929,99.41,99.291,84.23504115]
[1645029686296,1.42093929,99.41,99.293,101.3]
[1645029686493,1.42093929,99.407,99.293,101.3]
[1645029686698,1.42093929,99.404,99.31,15.0996]
[1645029686898,150.1007,99.4,99.3,12.37356623]
[1645029687094,150.1007,99.4,99.28,2.84797163]
[1645029687095,60.46,99.395,99.282,2.32625678]
[1645029687307,1.42093929,99.365,99.28,2.84797163]
[1645029687494,1.42093929,99.36,99.28,2.84797163]
[1645029687894,164.30112404,99.359,99.28,2.84797163]
[1645029688197,1.42093929,99.355,99.28,0.84797163]
[1645029688394,161.76,99.353,99.28,0.84797163]
[1645029688596,161.76,99.349,99.28,0.84797163]
[1645029688799,1.42093929,99.348,99.28,0.84797163]
[1645029689000,1.42093929,99.339,99.28,0.84797163]
[1645029689198,1.42093929,99.336,99.28,0.00797163]
[1645029689399,101.3,99.328,99.28,0.00797163]
[1645029690701,1.42093929,99.334,99.28,0.00797163]
[1645029690896,15.1142,99.32,99.28,0.00797163]
[1645029692298,62.3276,99.32,99.28,0.00797163]
[1645029724559,2.54112404,99.357,99.28,0.00797163]
[1645029724560,1.42093929,99.329,99.28,0.00797163]
[1645029724760,3.929e-05,99.331,99.291,101.3]
[1645029725059,15.0992,99.41,99.291,101.3]
[1645029725260,22.5068,99.409,99.293,101.3]
[1645029725660,101.3,99.408,99.31,15.0989]
[1645029725863,101.3,99.4,99.31,15.0989]
[1645029726061,101.3,99.398,99.3,14.57]
[1645029726264,15.1029,99.39,99.3,14.57]
[1645029726965,24.0405,99.389,99.3,29.6729]
[1645029727565,15.1038,99.38,99.3,29.6729]
[1645029727964,60.46,99.379,99.3,14.57]
[1645029728164,85.4453,99.379,99.3,14.57]
[1645029728370,24.9853,99.379,99.3,14.57]
[1645029728573,85.4453,99.379,99.3,14.57]
[1645029728767,15.1052,99.37,99.3,14.57]
[1645029729369,24.9853,99.379,99.3,29.6728]
[1645029731567,24.9853,99.379,99.301,2.32039199]
[1645029734370,24.9853,99.379,99.301,103.62039199]
[1645029734570,24.9853,99.379,99.31,15.1014]
[1645029735871,24.9853,99.379,99.301,2.32039199]
[1645029738874,15.1051,99.37,99.301,2.32039199]
[1645029739172,24.9853,99.379,99.301,2.32039199]
[1645029739574,24.9853,99.379,99.292,23.9493]
[1645029741576,85.4453,99.379,99.292,23.9493]
[1645029742979,15.1051,99.37,99.292,23.9493]
[1645029743686,15.1051,99.37,99.284,2.32039199]
[1645029743687,161.76,99.369,99.284,2.32039199]
[1645029743884,60.46,99.369,99.284,2.32039199]
[1645029744085,15.1064,99.36,99.284,2.32039199]
[1645029744388,60.46,99.369,99.284,2.32039199]
[1645029745187,24.9853,99.379,99.284,22.27330856]
[1645029745587,24.9853,99.379,99.29,15.1045]
[1645029745786,85.4453,99.379,99.29,15.1045]
[1645029746989,15.105,99.37,99.29,15.1045]
[1645029749690,15.105,99.37,99.291,19.95291657]
[1645029751913,60.46,99.369,99.291,19.95291657]
[1645029752114,15.1069,99.36,99.291,19.95291657]
[1645029752915,101.3,99.358,99.28,0.00797163]
[1645029753212,126.2134,99.358,99.28,0.00797163]
[1645029753915,15.108,99.35,99.28,0.00797163]
[1645029754313,161.76,99.349,99.28,0.00797163]
[1645029755814,101.3,99.339,99.28,0.00797163]
[1645029756614,24.4926,99.338,99.28,0.00797163]
[1645029758518,24.9134,99.358,99.28,0.00797163]
[1645029758720,22.8892,99.357,99.281,101.3]
[1645029758918,22.8892,99.357,99.281,119.81957506]
[1645029759119,2.8233827,99.401,99.283,101.3]
[1645029759322,46.1835,99.398,99.301,101.3]
[1645029759519,46.1835,99.398,99.302,24.1343]
[1645029760822,15.1016,99.39,99.31,15.1009]
[1645029763320,15.1016,99.39,99.302,24.1343]
[1645029763524,161.76,99.379,99.29,14.57]
[1645029763724,101.3,99.377,99.284,41.17277506]
[1645029763923,24.7571,99.378,99.284,22.6532]
[1645029764332,101.3,99.377,99.284,22.6532]
[1645029764822,15.1056,99.37,99.29,15.1044]
[1645029765224,15.1056,99.37,99.284,22.6532]
[1645029766232,15.1067,99.36,99.284,22.6532]
[1645029766427,24.4213,99.359,99.284,22.6532]
[1645029767828,24.4213,99.359,99.29,15.1044]
[1645029768028,24.4213,99.359,99.291,101.3]
[1645029768231,24.4213,99.359,99.291,103.62039199]
[1645029768445,23.2643,99.398,99.291,122.13996705]
[1645029768633,23.2643,99.398,99.293,101.3]
[1645029768929,23.2643,99.398,99.295,101.3]
[1645029769130,23.3557,99.397,99.311,101.3]
[1645029769334,23.3557,99.397,99.311,124.7858]
[1645029769531,23.3557,99.397,99.312,2.32039199]
[1645029770936,23.3557,99.397,99.32,15.0987]
[1645029772036,23.3557,99.397,99.321,101.3]
[1645029772237,23.3557,99.397,99.321,2.32039199]
[1645029772436,23.3557,99.397,99.33,15.0974]
[1645029772837,23.3557,99.397,99.321,2.32039199]
[1645029773036,23.3557,99.397,99.311,23.4858]
[1645029773837,15.1004,99.39,99.32,15.1]
[1645029779061,15.1004,99.39,99.311,23.4858]
[1645029780060,23.3557,99.397,99.311,23.4858]
[1645029780061,15.1037,99.37,99.311,23.4858]
[1645029780262,24.4995,99.369,99.3,29.6716]
[1645029780660,24.4995,99.369,99.301,2.32039199]
[1645029780861,24.4995,99.369,99.3,29.6716]
[1645029782264,24.4995,99.369,99.3,14.57]
[1645029782464,15.1052,99.36,99.285,23.6311]
[1645029782665,101.3,99.359,99.285,23.6311]
[1645029783167,101.3,99.359,99.28,0.00797163]
[1645029783168,161.76,99.359,99.28,0.00797163]
[1645029783367,161.76,99.357,99.28,0.00797163]
[1645029784067,101.3,99.349,99.28,0.00797163]
[1645029784268,161.76,99.349,99.28,0.00797163]
[1645029784468,161.76,99.339,99.28,0.00797163]
[1645029784670,161.76,99.337,99.28,0.00797163]
[1645029785868,161.76,99.329,99.28,0.00797163]
[1645029786071,101.3,99.319,99.28,0.00797163]
[1645029786367,101.3,99.317,99.28,0.00797163]
[1645029786968,60.46,99.309,99.28,0.00797163]
[1645029787668,101.3,99.308,99.28,0.00797163]
[1645029787968,101.3,99.298,99.28,0.00797163]
[1645029788168,15.1182,99.29,99.28,0.00797163]
[1645029788973,60.46,99.289,99.28,0.00797163]
[1645029789370,101.3,99.288,99.28,0.00797163]
[1645029789569,60.46,99.289,99.28,0.00797163]
[1645029790674,101.3,99.288,99.28,0.00797163]
[1645029791872,161.76,99.281,99.28,0.00797163]
[1645029794675,101.3,99.249,99.16,15.1226]
[1645029794872,101.3,99.247,99.16,15.1226]
[1645029795874,15.1253,99.23,99.161,2.32039199]
[1645029796978,14.8176,99.262,99.161,2.32039199]
[1645029796979,3.94,99.329,99.171,101.3]
[1645029797175,50.4035,99.28,99.181,101.3]
[1645029797376,14.8678,99.32,99.181,101.3]
[1645029797577,14.57,99.33,99.183,101.3]
[1645029797578,23.4691,99.317,99.183,101.3]
[1645029797978,23.4691,99.317,99.185,101.3]
[1645029798178,23.4691,99.317,99.201,101.3]
[1645029798378,15.1149,99.3,99.21,29.6859]
[1645029798984,24.8061,99.299,99.21,29.6859]
[1645029799377,24.8061,99.299,99.211,2.32039199]
[1645029799578,15.1159,99.29,99.22,15.1151]
[1645029799776,24.8061,99.299,99.22,15.1151]
[1645029800181,24.8061,99.299,99.221,2.32039199]
[1645029800379,15.1125,99.31,99.221,103.62039199]
[1645029800677,15.1125,99.31,99.222,2.32039199]
[1645029801081,15.1125,99.31,99.22,15.1151]
[1645029801677,101.3,99.308,99.21,14.57]
[1645029801878,15.1169,99.28,99.21,14.57]
[1645029802978,23.0293,99.279,99.21,29.6866]
[1645029803384,15.1184,99.27,99.197,2.32039199]
[1645029803679,15.1184,99.27,99.19,14.57]
[1645029803881,15.1184,99.27,99.18,15.1212]
[1645029804480,23.3813,99.269,99.18,15.1212]
[1645029804878,15.1217,99.25,99.18,15.1212]
[1645029805082,22.9902,99.249,99.18,15.1212]
[1645029806980,23.3813,99.269,99.181,103.62039199]
[1645029807180,23.3813,99.269,99.2,15.1174]
[1645029811184,23.3813,99.269,99.201,101.3]
[1645029811386,23.3813,99.269,99.2,15.1174]
[1645029811585,64.9499,99.33,99.22,15.1147]
[1645029811785,46.1362,99.317,99.22,15.1147]
[1645029811991,46.1362,99.317,99.221,2.32039199]
[1645029812186,46.1362,99.317,99.221,103.62039199]
[1645029812586,46.1362,99.317,99.221,2.32039199]
[1645029812784,15.1124,99.31,99.22,15.1151]
[1645029813187,101.3,99.309,99.22,15.1151]
[1645029813984,161.76,99.309,99.22,15.1151]
[1645029814790,161.26,99.309,99.22,15.1151]
[1645029814989,15.1152,99.3,99.211,24.1741]
[1645029815188,23.6107,99.299,99.211,24.1741]
[1645029815490,100.8,99.298,99.21,15.1168]
[1645029816687,23.6107,99.299,99.21,15.1168]
[1645029816891,15.1173,99.28,99.21,15.1168]
[1645029817793,23.6107,99.299,99.211,103.62039199]
[1645029817992,23.6107,99.299,99.221,101.3]
[1645029818391,23.5446,99.317,99.222,2.32039199]
[1645029818619,23.4676,99.316,99.222,2.32039199]
[1645029819822,23.4676,99.316,99.23,15.1127]
[1645029820028,23.4676,99.316,99.231,101.3]
[1645029820227,23.4676,99.316,99.231,2.32039199]
[1645029820822,15.1124,99.31,99.231,2.32039199]
[1645029821026,161.76,99.309,99.23,14.57]
[1645029821223,161.76,99.309,99.2,81.09808618]
[1645029821224,161.76,99.309,99.2,29.3328]
[1645029821723,161.76,99.309,99.2,14.7628]
[1645029822928,161.76,99.299,99.19,14.57]
[1645029823126,161.76,99.297,99.194,24.1193]
[1645029824730,24.5175,99.298,99.194,24.1193]
[1645029824928,24.5175,99.298,99.2,15.1182]
[1645029824929,15.1181,99.28,99.2,15.1182]
[1645029825136,24.1881,99.279,99.2,15.1182]
[1645029825531,24.1881,99.279,99.201,2.32039199]
[1645029826631,15.1156,99.29,99.211,101.3]
[1645029826831,24.3044,99.309,99.211,101.3]
[1645029827033,24.3044,99.309,99.212,26.67789199]
[1645029827432,24.3044,99.309,99.213,2.32039199]
[1645029827834,15.1138,99.3,99.22,15.1142]
[1645029830137,161.76,99.299,99.213,2.32039199]
[1645029830336,161.76,99.279,99.173,22.8275]
[1645029830533,68.25,99.279,99.173,22.8275]
[1645029830732,24.6746,99.278,99.173,22.8275]
[1645029832937,15.1212,99.26,99.181,101.3]
[1645029833137,24.6746,99.278,99.181,101.3]
[1645029833437,24.6746,99.278,99.182,2.32039199]
[1645029833837,24.6746,99.278,99.183,101.3]
[1645029834237,24.6746,99.278,99.184,2.32039199]
[1645029834636,24.6746,99.278,99.2,15.1178]
[1645029835037,24.6746,99.278,99.201,101.3]
[1645029835436,24.6746,99.278,99.2,2.32039199]
[1645029835637,24.6746,99.278,99.2,16.89039199]
[1645029836239,24.6746,99.278,99.21,15.1165]
[1645029837242,15.1181,99.27,99.2,32.00849199]
[1645029837441,15.1181,99.27,99.2,29.6881]
[1645029837840,15.1181,99.27,99.2,15.1181]
[1645029840341,15.1181,99.27,99.2,17.43849199]
[1645029840741,15.1181,99.27,99.2,15.1181]
[1645029843145,15.1181,99.27,99.201,101.3]
[1645029843346,23.5446,99.317,99.211,101.3]
[1645029843547,24.2644,99.315,99.22,14.57]
[1645029844142,24.2644,99.315,99.221,101.3]
[1645029844343,24.2644,99.315,99.241,101.3]
[1645029844549,24.2644,99.315,99.241,109.51]
[1645029844744,24.2644,99.315,99.242,2.32039199]
[1645029845146,24.2644,99.315,99.24,14.57]
[1645029845346,15.1121,99.31,99.24,14.57]
[1645029845546,15.1121,99.31,99.23,15.1137]
[1645029845746,15.1121,99.31,99.221,24.7733]
[1645029845945,60.46,99.309,99.221,24.7733]
[1645029846146,60.46,99.309,99.19,2.32039199]
[1645029846352,101.3,99.306,99.191,23.5989]
[1645029846645,161.76,99.301,99.191,23.5989]
[1645029847048,60.46,99.299,99.191,23.5989]
[1645029847651,60.46,99.299,99.192,2.32039199]
[1645029847848,15.1174,99.29,99.21,15.1153]
[1645029849252,23.5378,99.3,99.211,2.32039199]
[1645029849455,23.5378,99.3,99.23,15.1134]
[1645029850857,38.6515,99.3,99.23,15.1134]
[1645029851358,38.6515,99.3,99.231,101.3]
[1645029851558,1.42846086,99.321,99.24,15.112]
[1645029851756,24.6931,99.316,99.24,15.112]
[1645029852158,24.6931,99.316,99.241,101.3]
[1645029852380,24.6931,99.316,99.22,14.57]
[1645029852581,24.6931,99.316,99.221,101.3]
[1645029852784,24.6931,99.316,99.221,103.62039199]
[1645029852982,24.6931,99.316,99.222,2.32039199]
[1645029853183,24.6931,99.316,99.224,101.3]
[1645029853481,24.6931,99.316,99.225,2.32039199]
[1645029854183,15.1125,99.31,99.225,2.32039199]
[1645029855682,15.1125,99.31,99.224,101.3]
[1645029855884,15.1125,99.31,99.23,15.1137]
[1645029857683,15.1125,99.31,99.223,24.5403]
[1645029857890,15.1169,99.29,99.223,24.5403]
[1645029858086,23.6689,99.289,99.22,14.57]
[1645029858386,23.6689,99.289,99.21,2.32039199]
[1645029858387,84.1289,99.289,99.21,2.32039199]
[1645029858585,29.4689,99.289,99.2,14.57]
[1645029858888,89.9289,99.289,99.2,14.57]
[1645029859288,29.4689,99.289,99.2,14.57]
[1645029859688,161.76,99.279,99.2,14.57]
[1645029859886,161.76,99.279,99.183,2.32039199]
[1645029860088,161.76,99.277,99.183,2.32039199]
[1645029860291,161.76,99.275,99.183,2.32039199]
[1645029860488,60.46,99.275,99.183,2.32039199]